Cogmind - Beta 13 @@@ ROGUE MODE // 2024.07.16 @ 19:22:27 Player: jagoly Result: Destroyed by Y-54 Guardian with Flak Gun Performance ------------- Evolutions (0) 0 Regions Visited (3) 600 Robots Destroyed (37) 185 Value Destroyed (867) 867 Prototype IDs (2) 40 Alien Tech Used (0) 0 Bonus (0) 0 TOTAL SCORE: 1692 Bonus ------- None Cogmind --------- Core Integrity 0/250 Matter 260/300 Energy 160/160 System Corruption 0% Temperature Cool (94) Movement Rolling (105) Ox1 Location -7/Recycling Parts ------- > --- POWER (1) -------- Light Nuclear Core > --- PROPULSION (2) --- Wheel Compact Wheel > --- UTILITY (2) ------ Large Storage Unit Targeting Computer > --- WEAPON (2) ------- Subdweller Beam Cannon Subdweller Shrapnel Launcher > --- INVENTORY (15) --- Subdweller Power Source Aluminum Leg Aluminum Leg Improved Carbon-fiber Leg Scrap Engine Disposable Heat Sink Signal Interpreter Light Armor Plating Beam Rifle Subdweller Laser Heavy Laser Subdweller Beam Cannon Subdweller Machine Gun Grenade Launcher Peak State ------------ > --- POWER ------------ Light Nuclear Core > --- PROPULSION ------- Wheel Compact Wheel > --- UTILITY ---------- Large Storage Unit Targeting Computer > --- WEAPON ----------- Subdweller Beam Cannon Subdweller Beam Cannon > --- INVENTORY -------- Subdweller Power Source Aluminum Leg Aluminum Leg Improved Carbon-fiber Leg Scrap Engine Disposable Heat Sink Signal Interpreter Light Armor Plating Beam Rifle Subdweller Laser Heavy Laser Subdweller Machine Gun Grenade Launcher Subdweller Shrapnel Launcher [Rating: 15] Favorites ----------- Power Ion Engine Engine Ion Engine Power Core Light Nuclear Core Propulsion Aluminum Leg Treads Light Treads Leg Aluminum Leg Wheel Subdweller Monowheel Utility Targeting Computer Storage Medium Storage Unit Processor Targeting Computer Weapon Assault Rifle Energy Gun Subdweller Laser Energy Cannon Subdweller Beam Cannon Ballistic Gun Assault Rifle Ballistic Cannon Light Cannon Launcher Subdweller Shrapnel Launcher Build | -11 -10 -10 -7 ------- Run | Yrd Mat Sub Rec Slots Evolved . | . . . . Power . | . . . . Propulsion . | . . . . Utility . | . . . . Weapon . | . . . . Parts Attached 37 | 6 11 15 5 Power 7 | 1 3 2 1 Engine 6 | 1 3 2 . Core 1 | . . . 1 Reactor . | . . . . Propulsion 13 | 2 2 7 2 Treads 2 | 2 . . . Leg 4 | . 2 1 1 Wheel 7 | . . 6 1 Hover . | . . . . Flight . | . . . . Utility 5 | 1 3 1 . Device . | . . . . Storage 4 | 1 2 1 . Processor 1 | . 1 . . Hackware . | . . . . Protection . | . . . . Artifact . | . . . . Weapon 12 | 2 3 5 2 Energy Gun 3 | 1 . 2 . Energy Cannon 2 | . . 1 1 Ballistic Gun 2 | 1 1 . . Ballistic Cannon 3 | . 1 2 . Launcher 2 | . 1 . 1 Special Weapon . | . . . . Impact Weapon . | . . . . Slashing Weapon . | . . . . Piercing Weapon . | . . . . Special Melee Weapon . | . . . . Unidentified Prototypes . | . . . . Parts Lost 4 | . 2 2 . Power 1 | . 1 . . Propulsion 1 | . . 1 . Utility . | . . . . Weapon 2 | . 1 1 . Highest Loss Streak 1 | . 1 1 . To Critical Strikes . | . . . . Average Slot Usage (%) 98 | . 98 98 100 Engine 13 | . 14 14 4 Treads 8 | . 21 . . Leg 10 | . 6 14 1 Wheel 7 | . . 11 26 Storage 14 | . 14 14 14 Processor 13 | . 13 14 14 Energy Gun 6 | . 4 8 . Energy Cannon 3 | . . 4 27 Ballistic Gun 8 | . 18 1 . Ballistic Cannon 9 | . 5 13 . Naked Turns . | . . . . Heaviest Build 41 | 14 20 36 41 Greatest Support 40 | 40 40 40 26 Greatest Overweight (x) 4 | . . 3 4 Average Overweight (x) . | . . . 1 Largest Inventory Capacity 15 | 8 10 15 15 Average Capacity 10 | 7 8 12 15 Most Carried 15 | 3 10 15 15 Average Carried 10 | 1 7 11 14 Final Capacity 15 | 8 10 15 15 Final Carried 15 | 3 10 15 15 Class Distribution -------------------- 80% | Mutant 19% | Scavenger-Mutant Dominant Class ---------------- Mutant | -10/Materials Mutant | -10/Subcaves Mutant | -7/Recycling Resources | -11 -10 -10 -7 ----------- Run | Yrd Mat Sub Rec Matter Collected 1090 | 185 574 301 30 Remotely . | . . . . Salvage Created 1407 | . 990 362 55 Parts 60 | . 43 12 5 Haulers Intercepted 2 | . 2 . . Recyclers Shooed 1 | . 1 . . Parts Field Recycled . | . . . . Retrieved Matter . | . . . . Parts Self-Destructed 9 | . . 9 . Prevented . | . . . . Kills | -11 -10 -10 -7 ------- Run | Yrd Mat Sub Rec Combat Hostiles Destroyed 22 | . 13 9 . Guns 12 | . 10 2 . Cannons 10 | . 3 7 . Classes Destroyed 12 | . 7 5 . Worker 3 | . 3 . . Hauler 2 | . 2 . . Recycler 4 | . 4 . . Operator 1 | . 1 . . Turret 2 | . . 2 . Watcher 3 | . 3 . . Swarmer 5 | . 3 2 . Grunt 12 | . 10 2 . Sentry 1 | . . 1 . Artisan 1 | . . 1 . Cobbler 1 | . . 1 . Subdweller 4 | . . 4 . Best Kill Streak 4 | . 4 3 . Combat Bots Only 3 | . 3 2 . Max Kills in Single Turn 1 | . 1 1 . Gunslinging . | . . . . Exploded . | . . . . Melee . | . . . . Uniques/NPCs Destroyed . | . . . . Combat | -11 -10 -10 -7 -------- Run | Yrd Mat Sub Rec Hostile Shots Fired 190 | . 69 94 27 Missed 59 | . 15 30 14 Damage Taken 1538 | . 627 829 82 Core 252 | . 56 185 11 Absorbed by Shields . | . . . . Core Remaining (%) 100 | 100 . . . Volleys Fired 131 | . 75 52 4 Largest 2 | . 2 2 2 Hottest 160 | . 70 120 160 Shots Fired 240 | . 148 85 7 Gun 181 | . 130 51 . Cannon 58 | . 18 34 6 Launcher 1 | . . . 1 Special . | . . . . Kinetic 167 | . 127 39 1 Thermal 73 | . 21 46 6 Explosive . | . . . . Electromagnetic . | . . . . Robot Hit Streak 22 | . 22 9 3 Robot Miss Streak 4 | . 3 4 2 Penetration Max . | . . . . Secondary Targets 1 | . 1 . . Max Gunslinging Chain 1 | . 1 . . Shots Hit Robots 167 | . 105 59 3 Core Hits 62 | . 41 18 3 Critical Kills 1 | . . 1 . Critical Parts Destroyed 1 | . . 1 . Critical Strikes 4 | . 2 2 . Burn 1 | . 1 . . Destroy 2 | . . 2 . Blast 1 | . 1 . . Melee Attacks . | . . . . Impact . | . . . . Slashing . | . . . . Piercing . | . . . . Sneak Attacks . | . . . . Combat Hostiles . | . . . . Follow-up Attacks . | . . . . Damage Inflicted 2760 | . 1392 1158 210 Guns 1840 | . 1184 656 . Cannons 790 | . 208 502 80 Explosions 130 | . . . 130 Melee . | . . . . Ramming . | . . . . Kinetic 1833 | . 1191 512 130 Thermal 927 | . 201 646 80 Explosive . | . . . . Electromagnetic . | . . . . Impact . | . . . . Slashing . | . . . . Piercing . | . . . . Highest Corruption . | . . . . Average Corruption . | . . . . Corruption Purged . | . . . . Corruption Blocked . | . . . . Overload Shots . | . . . . Overflow Damage 18 | . . 18 . Projectiles 18 | . . 18 . Explosions . | . . . . Melee . | . . . . Knockbacks 2 | . . 2 . Impact . | . . . . Kinetic 2 | . . 2 . Secondary . | . . . . Self-Inflicted Damage . | . . . . Shots . | . . . . Rammed . | . . . . Targets Rammed . | . . . . Kicked . | . . . . Crushed . | . . . . Highest Temperature 251 | . 153 251 168 Average Temperature 56 | . 48 63 83 Received Heat Transfer 910 | . 306 580 24 Siege Activations . | . . . . Robots Corrupted . | . . . . Combat Hostiles . | . . . . Parts Fried . | . . . . Impact Corruptions . | . . . . Robots Melted . | . . . . Combat Hostiles . | . . . . Parts Melted 3 | . 2 1 . Heat Transferred 1588 | . 666 811 111 Parts Sabotaged . | . . . . Parts Stolen . | . . . . Parts Stripped . | . . . . Power Chain Reactions . | . . . . Alert | -11 -10 -10 -7 ------- Run | Yrd Mat Sub Rec Peak Influence 249 | . 249 . 214 Initial 193 | . . . 193 Average 97 | . 91 . 198 Maximum Alert Level 1 | . 1 . 1 Low Security (%) 97 | 100 97 . 89 Level 1 2 | . 2 . 10 Level 2 . | . . . . Level 3 . | . . . . Level 4 . | . . . . Level 5 . | . . . . High Security . | . . . . Max Security . | . . . . Squads Dispatched 2 | . 2 . . Investigation 1 | . 1 . . Extermination . | . . . . Reinforcement 1 | . 1 . . Assault . | . . . . Garrison . | . . . . Intercept . | . . . . Searches Triggered . | . . . . Construction Impeded . | . . . . Haulers Reinforced . | . . . . Active Scanning Responses . | . . . . Cargo Convoy Interrupts . | . . . . Stealth | -11 -10 -10 -7 --------- Run | Yrd Mat Sub Rec Distress Signals . | . . . . Communications Jammed . | . . . . Distress Signals . | . . . . Times Spotted 56 | . 20 34 2 Peak Tracking Total 3 | . 3 2 2 Tactical Retreats 3 | . . 3 . Traps | -11 -10 -10 -7 ------- Run | Yrd Mat Sub Rec Traps Triggered 4 | . 1 3 . Indirectly . | . . . . Trap Hack Attempts . | . . . . Triggered . | . . . . Disarmed . | . . . . Reprogrammed . | . . . . Reused . | . . . . Traps Extracted . | . . . . Installed . | . . . . Triggered . | . . . . Machines | -11 -10 -10 -7 ---------- Run | Yrd Mat Sub Rec Machines Disabled 1 | . 1 . . Max in Single Turn 1 | . 1 . . Machines Repaired . | . . . . Machines Dismantled . | . . . . Machines Sabotaged . | . . . . Overloaded Fab Kills . | . . . . Hacking | -11 -10 -10 -7 --------- Run | Yrd Mat Sub Rec Machines Accessed 10 | . 9 . 1 Terminals 7 | . 7 . . Fabricators . | . . . . Repair Stations . | . . . . Recycling Units 3 | . 2 . 1 Scanalyzers . | . . . . Garrison Access . | . . . . Total Hacks 20 | . 19 . 1 Successful 7 | . 6 . 1 Failed 13 | . 13 . . Catastrophic 3 | . 3 . . Database Lockouts . | . . . . Manual 3 | . 3 . . Terminals 17 | . 17 . . Fabricators . | . . . . Repair Stations . | . . . . Recycling Units 3 | . 2 . 1 Scanalyzers . | . . . . Garrison Access . | . . . . Terminal Hacks 4 | . 4 . . Prototype ID Bank 1 | . 1 . . Unreport Threat 1 | . 1 . . Hauler Manifests 2 | . 2 . . Fabricator Hacks . | . . . . Repair Station Hacks . | . . . . Recycling Unit Hacks 3 | . 2 . 1 Retrieve Components 3 | . 2 . 1 Scanalyzer . | . . . . Garrison Access Hacks . | . . . . Unauthorized Hacks . | . . . . Terminals . | . . . . Fabricators . | . . . . Repair Stations . | . . . . Recycling Units . | . . . . Scanalyzers . | . . . . Garrison Access . | . . . . Data Cores Recovered . | . . . . Used . | . . . . Hacking Detections 9 | . 8 . 1 Full Trace Events 1 | . 1 . . Feedback Events . | . . . . Feedback Blocked . | . . . . Robot Schematics Acquired . | . . . . Robots Built . | . . . . Authchips . | . . . . Time . | . . . . Total Robot Build Rating . | . . . . Part Schematics Acquired . | . . . . Parts Built . | . . . . Authchips . | . . . . Time . | . . . . Total Part Build Rating . | . . . . Parts Repaired . | . . . . Time . | . . . . Parts Recycled . | . . . . Recycled Matter . | . . . . Retrieved Matter . | . . . . Retrieved Components 15 | . 12 . 3 Parts Scanalyzed . | . . . . Part Schematics Acquired . | . . . . Parts Damaged . | . . . . Bothacking | -11 -10 -10 -7 ------------ Run | Yrd Mat Sub Rec Used RIF Installer . | . . . . Robots Hacked . | . . . . Non-combat . | . . . . Combat . | . . . . Robot Hacks Applied . | . . . . Relay Couplers Released . | . . . . Fabnet Peak Effective % . | . . . . Robots Rewired . | . . . . Allies Hacked . | . . . . Hacks Repelled . | . . . . Allies | -11 -10 -10 -7 -------- Run | Yrd Mat Sub Rec Total Allies . | . . . . Largest Group . | . . . . Highest-Rated Group . | . . . . Highest-Rated Ally . | . . . . Total Orders . | . . . . Ally Attacks . | . . . . Total Damage . | . . . . Kills . | . . . . Allies Corrupted . | . . . . Allies Melted . | . . . . Intel | -11 -10 -10 -7 ------- Run | Yrd Mat Sub Rec Robot Analysis Total . | . . . . Derelict Logs Recovered 2 | . . 2 . Drone Launches . | . . . . Drone Recoveries . | . . . . Exploration | -11 -10 -10 -7 ------------- Run | Yrd Mat Sub Rec Turns Passed 3040 | 83 1177 1632 148 Spaces Moved 1821 | 47 617 1050 107 Core 3 | 3 . . . Treads 478 | 44 434 . . Legs 630 | . 183 447 . Wheels 710 | . . 603 107 Hover . | . . . . Flight . | . . . . Fastest Speed 50 | 50 120 107 105 Average Speed 139 | 152 148 136 108 Slowest Speed 190 | 160 160 190 140 Overloaded Moves . | . . . . Propulsion Burnouts . | . . . . Robots Hopped . | . . . . Cave-ins Triggered . | . . . . Exploration Rate (%) 41 | 3 86 58 17 Regions Visited 3 Branch Regions 2 Pre-discovered Areas . | . . . . Known Exits Taken . | . . . . Unknown Exits Taken 3 | 1 1 1 . Scrap Searched 3 | . . 3 . Spaces Dug . | . . . . Terrain Destroyed 20 | . . . 20 Melee . | . . . . Projectile 3 | . . . 3 AOE 17 | . . . 17 Terrain Rammed . | . . . . Walls Destroyed . | . . . . Machines Disabled . | . . . . Actions | -11 -10 -10 -7 --------- Run | Yrd Mat Sub Rec Total 2085 | 55 733 1163 134 Wait 43 | . 9 24 10 Move 1818 | 46 616 1049 107 Hop . | . . . . Pick Up 30 | 3 14 10 3 Fast Attach 14 | 6 2 5 1 Attach 11 | . 5 4 2 Detach 4 | . . 3 1 Swap 12 | . 4 6 2 Drop 22 | . 8 10 4 Fire 131 | . 75 52 4 Melee . | . . . . Ram . | . . . . Kick . | . . . . Crush . | . . . . Escape Stasis . | . . . . Rewire . | . . . . Trap . | . . . . Miscellaneous . | . . . . Route ------- -11/Scrapyard -10/Materials (discovered 4 exits: [*Mat x3] / [*Sub]) -10/Subcaves -7/Recycling History --------- Turn | Location | Event 8 | -11/Scrapyard | Discovered new exit (range 16) 84 | -11/Scrapyard | Entered Materials 304 | -10/Materials | Build established: Mutant 479 | -10/Materials | Discovered new exit (range 12) 774 | -10/Materials | Discovered new exit (range 14) 1093 | -10/Materials | Discovered new exit (range 15) 1252 | -10/Materials | Discovered new exit (range 9) 1261 | -10/Materials | Entered Subcaves 1762 | -10/Subcaves | Build established: Scavenger-Mutant 1973 | -10/Subcaves | Learned Materials security intel 2248 | -10/Subcaves | Disturbed a concealed Subdweller 2255 | -10/Subcaves | Core integrity fell below 50% 2323 | -10/Subcaves | Discovered new exit (range 13) 2349 | -10/Subcaves | Build established: Mutant 2403 | -10/Subcaves | Core integrity fell below 20% 2470 | -10/Subcaves | Learned Materials security intel 2551 | -10/Subcaves | A swath of the cavern ceiling suddenly collapsed 2552 | -10/Subcaves | Shifting Twisted Machinery released Piercing Trap 2558 | -10/Subcaves | Shifting Twisted Machinery released Riot Gun 2667 | -10/Subcaves | A swath of the cavern ceiling suddenly collapsed 2893 | -10/Subcaves | Entered Recycling 2896 | -7/Recycling | Found Scrap Engine 3041 | -7/Recycling | Destroyed by Y-54 Guardian with Flak Gun Last Messages --------------- 02896_ Acquired Scrap Engine. 02909_ R-06 Scavenger destroyed. 02912_ Dropped Imp. Heat Sink. 02916_ Acquired Com. Wheel. 02918_ Acquired 30 matter. 02942_ Connecting with Recycling Unit... 02942_ Current location identified: Recycling >>Retrieve(Components) Retrieving 3 components... Imp. Carbon-fiber Leg Transmission Jammer Hvy. Laser 02942_ Dropped Ion Engine. 02945_ Acquired Hvy. Laser. 02947_ Dropped Grenade Launcher. 02948_ Acquired Imp. Carbon-fiber Leg. 02990_ R-06 Scavenger collects Ion Engine. 03009_ Y-54 Guardian springs to life. 03040_ Sub. Beam Cannon shoots sparks and powers down. 03041_ U-05 Engineer builds a Wall. Map ----- +----------------------------------------------------+ | | | | | | | | | | | | | | | | | | | | | | | | | | | | | | | | | ??????????????????????????????????????? | | ???????????????????????????????##?????? | | ???????????????????????????????# ####?? | | ???????????????????????????????# #?? | | ?????????????????#####?????##### #?? | | ??????????? ????##;r;;###### # #?? | | ??????????? ; #; #] # #?? | | ?????+##+##+### ;; # # #?? | | u Y; Y rr # # #?? | | ##;; @ # # #?? | | ?# ; + + #?? | | ??# ; # # #?? | | ##### ??#### # # #?? | | ???????# ??????# # # !*#?? | | ???????# ??????########### # !!##? | | ???????# ?????????????????# # =%#? | | ???????# ?????############# ######"# | | ??????? ??????# # #?????## | | ??????## ??????# # #??????? | | ??????? ???????# ? " # #??????? | | ???????#???????# """ """ # ! ###????? | | ???????????????# "" "" # ""#????? | | ???????????????# """ """ # ]Y"#????? | | ???????????????# "" "" + ""#????? | | ???????????????# """ """ # ###????? | | ???????????????# """ """ ### #??????? | | ???????????????# """ """ #?# #??????? | | ???????????????# " " ### ##?????? | | ???????????????# ## #?????? | | ???????????????# + #?????? | | ???????????????############## #?????? | | ????????????????????????????#####?????? | | ??????????????????????????????????????? | | ??????????????????????????????????????? | +----------------------------------------------------+ Best States ------------- Heat Dissipation 25 Energy Generation 15 Energy Capacity 250 Matter Stores 300 Matter Capacity 300 Sight Range 16 Terrain Scan Density 10 Evasion (%) 55 Targeting Accuracy 5 Recoil Reduction 2 Item Schematics ----------------- None Robot Schematics ------------------ None Fabricated ------------ Nothing Alien Tech Used ----------------- None Achievements -------------- None Challenges ------------ None Game ------ Seed TargetingEnergyRedistributor Manual? 0 Play Time 00:35:06 Cumulative 105.1 hours Start 2024.07.16 @ 18:47:56 End 2024.07.16 @ 19:22:27 Sessions 1 Manual Loads 0 Difficulty Rogue Special Mode None Game No. 32 Rogue 32 Adventurer 0 Explorer 0 Win Type - Total 1 Types 1/0/0/0/0/0/0/0/0 Lore% 36 Gallery% 45 Achievement% 35 Wizard Run 0 Options --------- Layout 0 ASCII 0 Keyboard 1 Movement Numpad Keybinds 0 Fullscreen 1 Font 18/X11Bold Map View 76x50 Zoom Use 0% Tactical HUD 1 Map Filters NONE Filters NONE Steam 1 RUN: 08994cde-e4a9-4c47-81d6-58abc519e858